bitfinex/quotes_BTCUSD_20251010
["timestamp","ask_amount","ask_price","bid_price","bid_amount"]
[1760139723114,0.17412518,114860.0,114830.0,0.08750055]
[1760139723316,0.00870852,114830.0,114810.0,0.34]
[1760139723519,0.1828631,114840.0,114820.0,0.08750055]
[1760139723938,0.18284817,114850.0,114820.0,0.08750055]
[1760139724139,0.1741579,114840.0,114820.0,0.08750055]
[1760139724392,0.1741579,114840.0,114830.0,0.34]
[1760139724613,0.18283143,114860.0,114830.0,0.42750055]
[1760139724828,0.27534607,114900.0,114840.0,0.08750055]
[1760139724829,2.15732755,114890.0,114840.0,0.08750055]
[1760139725052,2.15732755,114890.0,114860.0,0.34]
[1760139725254,0.17410986,114870.0,114860.0,0.34]
[1760139725473,0.17410986,114870.0,114860.0,0.30952813]
[1760139725705,2.15732755,114890.0,114860.0,0.30952813]
[1760139725877,0.17410986,114870.0,114850.0,0.4]
[1760139726083,0.17415534,114840.0,114830.0,0.001]
[1760139726301,0.00870625,114860.0,114830.0,0.08850055]
[1760139726520,0.17426065,114870.0,114860.0,0.001]
[1760139726656,0.00015036,114870.0,114860.0,0.001]
[1760139726865,0.00015036,114870.0,114860.0,0.48750055]
[1760139727063,1.97454208,114890.0,114860.0,0.88750055]
[1760139727064,1.92022721,114890.0,114860.0,0.88750055]
[1760139727279,0.08750055,114880.0,114870.0,0.34]
[1760139727481,0.17417051,114830.0,114820.0,0.02281533]
[1760139727700,0.17417051,114830.0,114780.0,0.13684548]
[1760139727701,0.00871004,114810.0,114780.0,0.02281533]
[1760139728020,0.27041566,114810.0,114780.0,0.04114798]
[1760139728280,0.2617179,114800.0,114780.0,0.01833265]
[1760139728561,0.2617179,114800.0,114760.0,0.44114798]
[1760139728562,0.18294276,114790.0,114760.0,0.44114798]
[1760139728753,0.17421735,114800.0,114780.0,0.00015036]
[1760139728985,0.18291511,114810.0,114780.0,0.48765091]
[1760139728986,0.17420116,114810.0,114780.0,0.48765091]
[1760139729196,0.18294677,114830.0,114790.0,0.08750055]
[1760139729375,0.18294677,114830.0,114790.0,0.48750055]
[1760139729583,0.1829077,114840.0,114810.0,0.34]
[1760139729719,0.16818791,114840.0,114810.0,0.34]
[1760139730118,0.00870776,114840.0,114810.0,0.42750055]
[1760139730366,0.00870776,114840.0,114830.0,0.34]
[1760139730367,0.34836,114840.0,114830.0,0.34]
[1760139730522,0.32953282,114840.0,114830.0,0.34]
[1760139730729,0.31587826,114840.0,114830.0,0.42750055]
[1760139730926,0.29212012,114840.0,114830.0,0.34]
[1760139731388,0.17415299,114880.0,114830.0,0.1308123]
[1760139731523,1.90566596,114890.0,114860.0,0.34]
[1760139731723,0.17410986,114870.0,114860.0,0.34]
[1760139732024,0.60988041,114870.0,114860.0,0.34]
[1760139732208,0.57936449,114870.0,114860.0,0.34]
[1760139732653,0.35871549,114870.0,114840.0,0.8]
[1760139732860,0.35871549,114870.0,114830.0,0.34015036]
[1760139732861,0.18284247,114860.0,114830.0,0.34015036]
[1760139733075,0.35208288,114860.0,114830.0,0.42694365]
[1760139733348,0.5143621,114860.0,114830.0,0.42694365]
[1760139733527,0.34023633,114860.0,114840.0,0.08750055]
[1760139733754,0.34023633,114860.0,114850.0,0.8]
[1760139734013,0.33541984,114860.0,114850.0,0.93114103]
[1760139734240,0.33541984,114860.0,114850.0,0.88750055]
[1760139734405,0.33541984,114860.0,114810.0,0.4]
[1760139734406,0.10440644,114830.0,114810.0,0.4]
[1760139734630,0.27039551,114820.0,114810.0,0.01849014]
[1760139734824,0.57165045,114820.0,114810.0,0.00962284]
[1760139735147,0.66335045,114820.0,114810.0,0.0001502]
[1760139735337,0.65597459,114820.0,114810.0,0.0001502]
[1760139735477,0.64536587,114820.0,114810.0,0.0001502]
[1760139735671,0.63821184,114820.0,114810.0,0.0001502]
[1760139735875,0.60394908,114820.0,114810.0,0.0001502]
[1760139736074,0.57499249,114820.0,114810.0,0.0001502]
[1760139736328,0.57015745,114820.0,114810.0,0.0001502]
[1760139736534,0.57115745,114820.0,114810.0,0.0001502]
[1760139736734,0.174214,114810.0,114750.0,0.02292662]
[1760139736938,0.30062079,114810.0,114790.0,0.34]
[1760139737112,0.30062079,114810.0,114780.0,0.34]
[1760139737113,0.18292709,114800.0,114780.0,0.34]
[1760139737335,0.1742312,114790.0,114780.0,0.34]
[1760139737533,0.30062079,114790.0,114780.0,0.34]
[1760139737775,0.26638436,114790.0,114780.0,0.34]
[1760139737943,0.25889752,114790.0,114780.0,0.34]
[1760139738535,0.21761163,114790.0,114780.0,0.34]
[1760139738741,0.1833752,114790.0,114780.0,0.34]
[1760139738938,0.14913877,114790.0,114780.0,0.34]
[1760139739140,0.14913877,114790.0,114780.0,0.82750055]
[1760139739491,0.1,114830.0,114820.0,0.34]
[1760139739617,0.09479739,114830.0,114820.0,0.34]
[1760139739984,0.05373215,114830.0,114820.0,0.34]
[1760139740119,0.01948183,114830.0,114820.0,0.36476337]
[1760139740539,0.36784183,114830.0,114820.0,0.36476337]
[1760139740780,0.36784183,114830.0,114820.0,0.27726282]
[1760139740982,0.54201234,114830.0,114820.0,0.27726282]
[1760139741187,0.36784183,114830.0,114820.0,0.33726282]
[1760139741393,0.36784183,114830.0,114820.0,0.33416721]
[1760139741598,0.54201234,114830.0,114820.0,0.32816106]
[1760139741767,0.36784183,114830.0,114820.0,0.32816106]
[1760139742167,0.54201234,114830.0,114820.0,0.32816106]
[1760139742641,0.54375234,114830.0,114820.0,0.32816106]
[1760139742842,0.74487237,114830.0,114820.0,0.06]
[1760139743047,0.65317237,114830.0,114820.0,0.06]
[1760139743204,0.62007473,114830.0,114820.0,0.06]
[1760139743606,0.57478473,114830.0,114820.0,0.06]
[1760139744211,0.70764308,114830.0,114820.0,0.06]
[1760139744412,0.70764308,114830.0,114760.0,0.46653002]
[1760139744413,0.16554387,114780.0,114760.0,0.4]
[1760139744782,0.15834237,114770.0,114750.0,0.42292662]
[1760139744972,0.28497578,114770.0,114750.0,0.88750055]
[1760139745186,0.28671578,114770.0,114750.0,0.88750055]
[1760139745380,0.45671235,114770.0,114750.0,0.88750055]
[1760139745578,0.28244905,114770.0,114760.0,0.08950055]
[1760139745779,0.28244905,114770.0,114760.0,0.342]
[1760139745933,0.28244905,114770.0,114760.0,0.42850055]
[1760139746134,0.2808126,114770.0,114760.0,0.40058055]
[1760139746537,0.2808126,114770.0,114750.0,0.8025017]
[1760139746538,0.45507416,114770.0,114750.0,0.8025017]
[1760139746739,0.2808126,114770.0,114750.0,0.90837963]
[1760139746963,0.19542036,114770.0,114760.0,0.08750055]
[1760139747194,0.19542036,114770.0,114760.0,0.48750055]
[1760139747363,0.36968192,114770.0,114760.0,0.08750055]
[1760139747590,0.36968192,114770.0,114750.0,0.4005017]
[1760139747741,0.1167803,114770.0,114760.0,0.001]
[1760139747939,0.29104186,114770.0,114760.0,0.002]
[1760139748180,0.1167803,114770.0,114760.0,0.002]
[1760139748379,0.1167803,114770.0,114750.0,0.7405017]
[1760139748601,0.29104191,114770.0,114750.0,0.3405017]
[1760139748818,0.1167803,114770.0,114750.0,0.7415017]
[1760139749024,0.12701316,114770.0,114750.0,0.7425017]
[1760139749351,0.47556316,114770.0,114750.0,0.7425017]
[1760139749552,0.47556316,114770.0,114750.0,0.76087709]
[1760139749850,0.34855,114770.0,114760.0,0.82750055]
[1760139750002,0.15195727,114790.0,114770.0,0.34]
[1760139750238,0.17424638,114780.0,114770.0,0.34]
[1760139750801,0.17424638,114780.0,114770.0,0.34025859]
[1760139751178,0.52449638,114780.0,114770.0,0.00025859]
[1760139751538,0.52449638,114780.0,114770.0,0.00125859]
[1760139751754,0.52449638,114780.0,114770.0,0.00225859]
[1760139752350,0.41276219,114780.0,114770.0,0.00225859]
[1760139752696,0.41242096,114780.0,114770.0,0.00225859]
[1760139753120,0.35025,114780.0,114770.0,0.00225859]
[1760139753514,0.35025,114780.0,114770.0,0.00125859]
[1760139753719,0.35025,114780.0,114770.0,0.00025859]
[1760139753972,0.35025,114780.0,114770.0,1.27357422]
[1760139754170,0.35025,114780.0,114770.0,0.87257422]
[1760139754378,0.35025,114780.0,114770.0,0.47157422]
[1760139754511,0.35025,114780.0,114770.0,0.87257422]
[1760139754715,0.5022396,114780.0,114770.0,0.74225859]
[1760139754921,0.32799322,114780.0,114770.0,0.34125859]
[1760139755205,0.32799322,114780.0,114770.0,0.34225859]
[1760139755206,0.5022396,114780.0,114770.0,0.34225859]
[1760139755528,0.5022396,114780.0,114770.0,0.74225859]
[1760139755976,0.32799322,114780.0,114770.0,0.74225859]
[1760139756242,0.5022396,114780.0,114770.0,0.00225859]
[1760139756657,0.47998398,114780.0,114770.0,0.34225859]
[1760139757057,0.3057376,114780.0,114770.0,0.34225859]
[1760139757313,0.3057376,114780.0,114770.0,0.74225859]
[1760139757449,0.3057376,114780.0,114770.0,0.74125859]
[1760139757651,0.3057376,114780.0,114770.0,0.82775914]
[1760139757854,0.3057376,114780.0,114770.0,0.82875914]
[1760139758099,0.47998398,114780.0,114770.0,0.82875914]
[1760139758302,0.47998398,114780.0,114770.0,0.08875914]
[1760139758513,0.3057376,114780.0,114770.0,0.09075914]
[1760139758802,0.3057376,114780.0,114770.0,0.74325859]
[1760139759183,0.3057376,114780.0,114770.0,0.34]
[1760139759391,0.30118422,114780.0,114770.0,0.82750055]
[1760139759564,0.4754306,114780.0,114770.0,0.34]
[1760139759825,0.30118422,114780.0,114770.0,0.34]
[1760139760171,0.30118422,114780.0,114770.0,0.342]
[1760139760374,0.30118422,114780.0,114770.0,0.42950055]
[1760139760620,0.17424638,114780.0,114770.0,0.34]
[1760139760953,0.26174693,114780.0,114770.0,0.002]
[1760139761228,0.35893693,114780.0,114770.0,0.001]
[1760139761530,0.35893693,114780.0,114750.0,0.0005017]
[1760139761531,0.17427675,114760.0,114750.0,0.0005017]
[1760139761733,0.6120273,114760.0,114750.0,0.0005017]
[1760139761987,0.7092173,114760.0,114750.0,0.0005017]
[1760139762192,0.08891303,114710.0,114690.0,0.4]
[1760139762403,0.10590863,114700.0,114690.0,0.10608106]
[1760139762610,0.44788066,114710.0,114690.0,0.41858051]
[1760139763036,0.35896763,114710.0,114690.0,0.50608106]
[1760139763243,0.53332313,114710.0,114690.0,0.50608106]
[1760139763450,0.5246029,114710.0,114690.0,0.81858051]
[1760139763628,0.17436791,114700.0,114690.0,0.01958051]
[1760139763831,0.17610791,114700.0,114690.0,0.01958051]
[1760139764060,0.17610791,114700.0,114690.0,0.00115023]
[1760139764413,0.26300084,114700.0,114690.0,0.00015023]
[1760139764586,0.00174,114700.0,114690.0,0.00115023]
[1760139765027,0.17610791,114700.0,114690.0,0.01844227]
[1760139765206,0.17438311,114690.0,114680.0,0.35842846]
[1760139765405,0.26362366,114690.0,114680.0,0.01858115]
[1760139765613,0.26362366,114690.0,114680.0,0.00015045]
[1760139766231,0.17436791,114700.0,114680.0,0.00015045]
[1760139766444,0.17442874,114660.0,114650.0,0.02338961]
[1760139766617,0.195196,114660.0,114650.0,0.02354018]
[1760139767025,0.17807667,114660.0,114650.0,0.02354018]
[1760139767226,0.26366929,114660.0,114650.0,0.02354018]
[1760139767474,0.23115052,114680.0,114650.0,0.02354018]
[1760139767475,0.18314052,114680.0,114650.0,0.02354018]
[1760139767680,0.17436926,114700.0,114680.0,0.4]
[1760139767911,0.18307045,114710.0,114690.0,0.34]
[1760139768243,0.26359581,114710.0,114690.0,0.34]
[1760139768447,0.17436791,114700.0,114690.0,0.34]
[1760139768672,0.00174,114700.0,114690.0,0.34]
[1760139768902,0.1743888,114690.0,114680.0,0.34]
[1760139769101,0.1743888,114690.0,114680.0,0.35857103]
[1760139769102,0.00174,114690.0,114680.0,0.35857103]
[1760139769252,0.00871839,114700.0,114680.0,0.35857103]
[1760139769253,0.17428823,114700.0,114680.0,0.35857103]
[1760139769460,0.18300662,114700.0,114680.0,0.35857103]
[1760139769663,0.17438311,114690.0,114680.0,0.35857103]
[1760139769864,0.00174,114690.0,114680.0,0.01857103]
[1760139770228,0.17495496,114700.0,114680.0,0.01857103]
[1760139770551,0.17669496,114700.0,114690.0,0.001]
[1760139770740,0.17082415,114700.0,114690.0,0.001]
[1760139770994,0.00174,114700.0,114680.0,0.84607158]
[1760139771196,0.18312788,114720.0,114680.0,0.84607158]
[1760139771197,0.18305475,114720.0,114690.0,0.13096334]
[1760139771400,0.1743403,114750.0,114700.0,1.27130449]
[1760139771541,0.00174,114720.0,114700.0,1.27130449]
[1760139771949,0.17944029,114730.0,114700.0,1.27130449]
[1760139772350,0.1743403,114750.0,114730.0,0.34]
[1760139772529,0.1743403,114750.0,114730.0,0.33826]
[1760139772530,0.18305489,114750.0,114730.0,0.33826]
[1760139772738,0.17430712,114740.0,114730.0,0.33826]
[1760139772938,0.17604712,114740.0,114730.0,0.33826]
[1760139773141,0.00174,114740.0,114730.0,0.42576055]
[1760139773354,0.15376205,114770.0,114730.0,0.42576055]
[1760139773556,0.15376205,114770.0,114730.0,0.33826]
[1760139773557,0.17430712,114740.0,114730.0,0.33826]
[1760139773685,0.1417961,114740.0,114730.0,0.33826]
[1760139774049,0.1417961,114740.0,114700.0,0.001]
[1760139774050,0.17432232,114730.0,114670.0,0.03042044]
[1760139774254,0.18307034,114710.0,114690.0,0.4]
[1760139774407,0.17358243,114700.0,114690.0,0.4]
[1760139774617,0.17358243,114700.0,114670.0,0.4]
[1760139774618,0.17439832,114680.0,114670.0,0.4]
[1760139774857,0.00174,114680.0,114670.0,0.10593564]
[1760139775133,0.17435959,114710.0,114680.0,0.4]
[1760139775134,0.1459963,114710.0,114680.0,0.4]
[1760139775331,0.17433845,114720.0,114680.0,0.4]
[1760139775332,0.14881711,114730.0,114690.0,0.48750055]
[1760139775538,0.14881711,114730.0,114700.0,0.34]
[1760139775539,0.23802459,114730.0,114700.0,0.34]
[1760139775717,0.17433768,114720.0,114700.0,0.34]
[1760139775918,0.17436791,114700.0,114670.0,0.00115057]
[1760139776147,0.15056301,114700.0,114680.0,0.08750055]
[1760139776457,0.14012905,114680.0,114670.0,0.00015057]
[1760139776667,0.10759978,114680.0,114670.0,0.00115057]
[1760139776874,0.19510033,114680.0,114670.0,0.00115057]
[1760139777098,0.17430623,114680.0,114670.0,0.00115057]
[1760139777252,0.05253679,114680.0,114670.0,0.00015057]
[1760139777455,0.08732897,114680.0,114670.0,0.00015057]
[1760139777658,0.26172729,114680.0,114670.0,0.00015057]
[1760139777858,0.22745802,114680.0,114670.0,0.00015057]
[1760139778093,0.19318875,114680.0,114670.0,0.00015057]
[1760139778315,0.31591874,114680.0,114670.0,1e-08]
[1760139778520,0.46915001,114680.0,114670.0,1e-08]
[1760139778740,0.43488073,114680.0,114670.0,1e-08]
[1760139778929,0.1726979,114680.0,114670.0,1e-08]
[1760139779146,0.13840328,114680.0,114670.0,1e-08]
[1760139779486,0.26189887,114680.0,114670.0,1e-08]
[1760139779684,0.12009371,114680.0,114670.0,1e-08]
[1760139779911,0.17332499,114680.0,114670.0,1e-08]
[1760139780370,0.26189887,114680.0,114670.0,1e-08]
[1760139780608,0.17439832,114680.0,114670.0,1e-08]
[1760139780787,0.16652268,114680.0,114670.0,1e-08]
[1760139781153,0.16652268,114680.0,114660.0,0.34]
[1760139781154,0.2085835,114670.0,114660.0,0.34]
[1760139781350,0.2085835,114670.0,114660.0,0.3401504]
[1760139781351,0.20428656,114670.0,114660.0,0.3401504]
[1760139781817,0.02552925,114670.0,114660.0,0.42765095]
[1760139781953,0.02552925,114670.0,114660.0,0.49029766]
[1760139781954,0.02097106,114670.0,114660.0,0.49029766]
[1760139782302,0.01667775,114670.0,114660.0,0.42765095]
[1760139782551,0.01223558,114670.0,114660.0,0.82765095]
[1760139782754,0.17227786,114680.0,114660.0,0.42765095]
[1760139782981,0.17441353,114670.0,114660.0,0.3401504]
[1760139783120,0.1702154,114670.0,114660.0,0.3401504]
[1760139783317,0.17441353,114670.0,114660.0,0.0011504]
[1760139783516,0.18310377,114690.0,114660.0,0.08750055]
[1760139783717,0.18308697,114700.0,114670.0,0.08750055]
[1760139783922,0.17438388,114690.0,114670.0,0.08750055]
[1760139784121,0.18312252,114730.0,114680.0,0.08750055]
[1760139784319,0.18302216,114760.0,114710.0,0.8]
[1760139784539,0.18302216,114760.0,114710.0,0.90959012]
[1760139784540,0.18302321,114740.0,114710.0,0.90959012]
[1760139784741,0.14709719,114720.0,114710.0,0.08750055]
[1760139784951,0.14212569,114720.0,114710.0,0.10774932]
[1760139785161,0.14212569,114720.0,114710.0,0.02024877]
[1760139785343,0.13717497,114720.0,114710.0,0.02024877]
[1760139785548,0.17809709,114710.0,114690.0,0.35869104]
[1760139785749,0.00015026,114720.0,114700.0,0.88750055]
[1760139785947,0.1695246,114730.0,114710.0,0.34]
[1760139786147,0.18300734,114750.0,114720.0,0.08750055]
[1760139786373,0.00871307,114770.0,114740.0,0.34]
[1760139786592,0.17427784,114760.0,114740.0,0.3615827]
[1760139786792,0.26179248,114750.0,114740.0,0.34]
[1760139787039,0.25645337,114750.0,114740.0,0.34]
[1760139787254,0.17433751,114720.0,114710.0,0.001]
[1760139787467,0.26183806,114720.0,114710.0,0.001]
[1760139787669,0.25671225,114720.0,114710.0,0.001]
[1760139787807,0.25169691,114720.0,114710.0,0.001]
[1760139788211,0.18309102,114700.0,114670.0,0.8]
[1760139788506,0.17436564,114710.0,114680.0,0.08750055]
[1760139788507,0.18308327,114710.0,114680.0,0.08750055]
[1760139788711,0.17436958,114700.0,114680.0,0.48750055]
[1760139788961,0.17024499,114690.0,114680.0,0.48750055]
[1760139789162,0.17436958,114700.0,114680.0,0.48750055]
[1760139789325,0.17890901,114710.0,114680.0,0.48750055]
[1760139789541,0.1702777,114700.0,114690.0,0.34]
[1760139789735,0.03418899,114700.0,114690.0,0.34]
[1760139790153,0.20441003,114700.0,114690.0,0.34]
[1760139790308,0.02576147,114700.0,114690.0,0.34]
[1760139790509,0.17439832,114680.0,114670.0,0.34015026]
[1760139790709,0.17015153,114680.0,114670.0,0.34015026]
[1760139790919,0.16580661,114680.0,114670.0,0.34015026]
[1760139791119,0.17438378,114690.0,114670.0,0.34015026]
[1760139791328,0.02576147,114700.0,114690.0,1.14]
[1760139791589,0.0168843,114700.0,114690.0,1.24528365]
[1760139791815,0.01251864,114700.0,114690.0,1.24528365]
[1760139791970,0.18688655,114700.0,114690.0,0.77622532]
[1760139792169,0.00802659,114700.0,114690.0,0.86372587]
[1760139792374,0.00345593,114700.0,114690.0,0.86372587]
[1760139792573,0.17882384,114700.0,114690.0,0.44594277]
[1760139792778,0.17882384,114700.0,114690.0,0.01844222]
[1760139792779,0.17436791,114700.0,114690.0,0.01844222]
[1760139792980,0.16995909,114680.0,114670.0,0.00015026]
[1760139793678,0.16557311,114680.0,114670.0,0.00015026]
[1760139793890,0.25307366,114680.0,114670.0,0.00015026]
[1760139794090,0.17447439,114630.0,114620.0,0.07605111]
[1760139794293,0.17445917,114640.0,114620.0,0.0494023]
[1760139794460,0.18316614,114650.0,114620.0,0.0494023]
[1760139794661,0.00455939,114650.0,114630.0,0.34]
[1760139794886,0.17883495,114660.0,114630.0,0.13640106]
[1760139795105,0.00872143,114660.0,114630.0,0.10598062]
[1760139795421,0.17845462,114660.0,114630.0,0.10598062]
[1760139795624,0.17845462,114660.0,114640.0,0.42750055]
[1760139795940,0.17080956,114650.0,114640.0,0.35848007]
[1760139796233,0.17080956,114650.0,114640.0,0.01848007]
[1760139796234,0.16663455,114650.0,114640.0,0.01848007]
[1760139796516,0.16992341,114640.0,114620.0,0.09500642]
[1760139796747,0.17447439,114630.0,114620.0,0.38937684]
[1760139796948,0.17447439,114630.0,114620.0,0.0189564]
[1760139797083,0.17447439,114630.0,114620.0,0.00050179]
[1760139797084,0.16994132,114630.0,114620.0,0.00050179]
[1760139797292,0.25744187,114630.0,114620.0,0.00050179]
[1760139797709,0.25313424,114630.0,114620.0,0.00050179]
[1760139798114,0.16992341,114640.0,114620.0,0.00050179]
[1760139798314,0.17447439,114630.0,114620.0,0.00050179]
[1760139798518,0.3073713,114630.0,114620.0,0.00606045]
[1760139798723,0.4005713,114630.0,114620.0,0.00606045]
[1760139798920,0.4005713,114630.0,114620.0,0.00506045]
[1760139799122,0.39623131,114630.0,114620.0,0.00506045]
[1760139799791,0.3917481,114630.0,114620.0,0.00506045]
[1760139800096,0.17455053,114580.0,114570.0,0.07605111]
[1760139800303,0.17386572,114580.0,114570.0,0.03057124]
[1760139800485,0.35525108,114580.0,114570.0,0.0001508]
[1760139800684,0.10934942,114580.0,114570.0,0.00470946]
[1760139800891,0.27949723,114580.0,114570.0,0.00470946]
[1760139801099,0.275083,114580.0,114570.0,0.00470946]
[1760139801745,0.27083024,114580.0,114570.0,0.00470946]
[1760139801950,0.27083024,114580.0,114560.0,0.0004]
[1760139801951,0.19531237,114570.0,114560.0,1e-08]
[1760139802170,0.43270321,114570.0,114560.0,1e-08]
[1760139802357,0.17454939,114520.0,114500.0,0.0073]
[1760139802555,0.26204994,114520.0,114500.0,0.0073]
[1760139802966,0.13704527,114520.0,114500.0,0.01185866]
[1760139803147,0.16937625,114510.0,114500.0,0.01185866]
[1760139803511,0.16479845,114510.0,114500.0,0.01185866]
[1760139803710,0.13704527,114520.0,114500.0,0.01185866]
[1760139803711,0.17464824,114540.0,114510.0,0.00425338]
[1760139803912,0.17464824,114540.0,114510.0,0.47890338]
[1760139803913,0.27087936,114540.0,114510.0,0.47890338]
[1760139804138,0.00873057,114540.0,114520.0,0.43339338]
[1760139804315,0.00414936,114540.0,114530.0,0.08914]
[1760139804515,0.17461148,114540.0,114530.0,0.09339338]
[1760139804727,0.18337975,114550.0,114520.0,0.43339338]
[1760139805061,0.17462673,114530.0,114520.0,0.42914]
[1760139805308,0.17037902,114530.0,114520.0,0.34]
[1760139805701,0.16567124,114530.0,114520.0,0.34]
[1760139805856,0.16098386,114530.0,114520.0,0.34]
[1760139806255,0.15653703,114530.0,114520.0,0.341]
[1760139806455,0.17462673,114530.0,114520.0,0.342]
[1760139806662,0.17020584,114530.0,114520.0,0.342]
[1760139806885,0.16980496,114540.0,114520.0,0.341]
[1760139807211,0.16564546,114540.0,114520.0,0.09439338]
[1760139807417,0.17461445,114540.0,114530.0,0.00425338]
[1760139807582,0.18352999,114550.0,114530.0,0.09339338]
[1760139807795,0.17459624,114550.0,114540.0,0.09339338]
[1760139807961,0.17459624,114550.0,114540.0,0.08914]
[1760139808162,0.1698716,114550.0,114540.0,0.00425338]
[1760139808405,0.1698716,114550.0,114520.0,0.08914]
[1760139808406,0.17030929,114540.0,114530.0,0.00425338]
[1760139808568,0.17030929,114540.0,114530.0,0.001]
[1760139808763,0.17035992,114530.0,114520.0,0.09339338]
[1760139809010,0.17030929,114540.0,114520.0,0.09339338]
[1760139809359,0.16558519,114540.0,114520.0,0.00425338]
[1760139809555,0.17860141,114550.0,114530.0,0.09339338]
[1760139809776,0.00443356,114560.0,114540.0,0.09339338]
[1760139809978,0.17458185,114560.0,114550.0,0.04788338]
[1760139810201,0.17459902,114570.0,114540.0,0.08750055]
[1760139810405,0.18331024,114560.0,114520.0,0.401]
[1760139810581,0.17458131,114560.0,114540.0,0.08750055]
[1760139810730,0.17459624,114550.0,114540.0,0.08750055]
[1760139810933,0.17887422,114560.0,114540.0,0.08750055]
[1760139811354,0.17887422,114560.0,114530.0,0.001]
[1760139811355,0.17014819,114570.0,114550.0,0.08750055]
[1760139811562,0.18333206,114590.0,114550.0,0.08750055]
[1760139811760,0.17456647,114570.0,114550.0,0.48750055]
[1760139811926,0.18333206,114590.0,114550.0,0.48750055]
[1760139812131,0.18330519,114600.0,114570.0,0.34]
[1760139812132,0.17452885,114600.0,114570.0,0.34]
[1760139812505,0.17455053,114580.0,114570.0,0.42750055]
[1760139812765,0.17455053,114580.0,114570.0,0.34]
[1760139813164,0.18332062,114560.0,114540.0,0.34]
[1760139813395,0.18332062,114560.0,114540.0,0.08750055]
[1760139813605,0.17860928,114580.0,114550.0,0.08750055]
[1760139813816,0.17457046,114570.0,114550.0,0.08765079]
[1760139814021,0.174581,114560.0,114550.0,0.00015024]
[1760139814214,0.17033085,114560.0,114550.0,0.00015024]
[1760139814621,0.15721686,114570.0,114550.0,0.00015024]
[1760139814821,0.22852689,114590.0,114550.0,0.08765079]
[1760139814822,0.17878689,114590.0,114550.0,0.08765079]
[1760139815035,0.18331515,114600.0,114560.0,0.42750055]
[1760139815235,0.18323271,114610.0,114560.0,0.42750055]
[1760139815434,0.17457317,114620.0,114570.0,0.4]
[1760139815435,0.00872448,114620.0,114570.0,0.4]
[1760139815637,0.17895183,114620.0,114580.0,0.42750055]
[1760139815771,0.17452061,114600.0,114580.0,0.42750055]
[1760139815976,0.17895183,114620.0,114580.0,0.42750055]
[1760139816377,0.18323087,114610.0,114580.0,0.42750055]
[1760139816623,0.18325846,114630.0,114580.0,0.42750055]
[1760139816800,0.18325846,114630.0,114600.0,0.34]
[1760139816997,0.17893223,114630.0,114610.0,0.08750055]
[1760139817223,0.1831835,114640.0,114610.0,0.08750055]
[1760139817402,0.17447575,114630.0,114610.0,0.08750055]
[1760139817839,0.17448961,114620.0,114610.0,0.08750055]
[1760139818043,0.1701707,114620.0,114610.0,0.08750055]
[1760139818247,0.17063789,114630.0,114610.0,0.08750055]
[1760139818496,0.17447502,114630.0,114610.0,0.08850055]
[1760139818743,0.00501425,114640.0,114600.0,0.34]
[1760139818896,0.00460076,114640.0,114610.0,0.08950055]
[1760139819110,0.1701317,114620.0,114610.0,0.002]
[1760139819337,0.17450484,114610.0,114600.0,0.08750055]
[1760139819508,0.18319815,114630.0,114590.0,0.34]
[1760139819708,0.0044972,114620.0,114600.0,0.08750055]
[1760139819915,0.18319815,114630.0,114600.0,0.08750055]
[1760139820114,0.17011706,114620.0,114610.0,0.001]
[1760139820559,0.16566813,114620.0,114610.0,0.001]
[1760139821002,0.16133501,114620.0,114610.0,0.001]
[1760139821345,0.15700442,114620.0,114600.0,0.08750055]
[1760139821548,0.1744916,114620.0,114600.0,0.08750055]
[1760139821697,0.17447542,114630.0,114610.0,0.341]
[1760139821905,0.17448961,114620.0,114610.0,0.34]
[1760139822105,0.17448961,114620.0,114610.0,0.341]
[1760139822308,0.17014876,114620.0,114610.0,0.341]
[1760139822518,0.00872752,114580.0,114540.0,0.03042044]
[1760139822714,0.00445623,114580.0,114560.0,0.08750055]
[1760139822917,0.18327563,114590.0,114560.0,0.48750055]
[1760139823109,0.18326018,114610.0,114570.0,0.34]
[1760139823322,0.17453835,114590.0,114570.0,0.08750055]
[1760139823486,0.18326018,114610.0,114570.0,0.42750055]
[1760139823685,0.17465807,114610.0,114590.0,0.34]
[1760139823896,0.17452006,114600.0,114590.0,0.42750055]
[1760139824097,0.17450557,114610.0,114590.0,0.82750055]
[1760139824347,0.17020137,114610.0,114600.0,0.08750055]
[1760139824974,0.16582341,114610.0,114600.0,0.08750055]
[1760139825173,0.16152027,114610.0,114600.0,0.08750055]
[1760139825378,0.17024551,114610.0,114580.0,0.74]
[1760139825554,0.17023664,114600.0,114590.0,0.08750055]
[1760139825866,0.17023664,114600.0,114560.0,0.401]
[1760139825867,0.1790192,114590.0,114560.0,0.401]
[1760139826002,0.17455053,114580.0,114570.0,0.42750055]
[1760139826207,0.17896264,114600.0,114570.0,0.44583473]
[1760139826432,0.17887324,114620.0,114570.0,0.84583473]
[1760139826633,0.17887324,114620.0,114590.0,0.38315035]
[1760139826832,0.17403933,114620.0,114600.0,0.08750055]
[1760139827031,0.16958279,114610.0,114600.0,0.08750055]
[1760139827265,0.16958279,114610.0,114590.0,0.34]
[1760139827450,0.16530171,114610.0,114590.0,0.42750055]
[1760139827642,0.17040506,114620.0,114590.0,0.42750055]
[1760139827877,0.16906545,114620.0,114590.0,0.34]
[1760139828119,0.16906545,114620.0,114600.0,0.001]
[1760139828324,0.18319913,114630.0,114600.0,0.08750055]
[1760139828529,0.1789684,114640.0,114600.0,0.08750055]
[1760139828742,0.18319893,114630.0,114600.0,0.42750055]
[1760139828945,0.17450484,114610.0,114600.0,0.42750055]
[1760139829166,0.17020853,114610.0,114600.0,0.34]
[1760139829569,0.21884853,114610.0,114600.0,0.001]
[1760139829744,0.40089378,114610.0,114600.0,0.001]
[1760139829948,0.39646827,114610.0,114600.0,0.001]
[1760139830356,0.16954764,114620.0,114600.0,0.001]
[1760139830524,0.17832205,114630.0,114600.0,0.001]
[1760139830721,0.1789684,114640.0,114600.0,0.08750055]
[1760139830923,0.17452621,114650.0,114610.0,0.42750055]
[1760139831188,0.18318292,114640.0,114610.0,0.42750055]
[1760139831504,0.27068347,114640.0,114610.0,0.34]
[1760139831700,0.22727211,114650.0,114610.0,0.42750055]
[1760139831895,0.26195163,114650.0,114610.0,0.42750055]
[1760139832094,0.26597927,114650.0,114610.0,0.42750055]
[1760139832445,0.00427645,114660.0,114620.0,0.08750055]
[1760139832642,0.223099,114670.0,114620.0,0.08765109]
[1760139832643,0.18313604,114670.0,114620.0,0.08765109]
[1760139832851,0.17850344,114650.0,114620.0,0.08765109]
[1760139833061,0.17859233,114660.0,114620.0,0.08765109]
[1760139833324,0.00872219,114650.0,114620.0,0.08765109]